bitfinex-derivatives/quotes_SOLF0:USTF0_20250416
["timestamp","ask_amount","ask_price","bid_price","bid_amount"]
[1744835370565,7.5028,133.29,133.25,7.5044]
[1744835370868,33.14,133.32,133.24,9.5594]
[1744835371259,7.5032,133.28,133.24,9.5594]
[1744835371463,33.14,133.32,133.24,2.0546]
[1744835371664,0.05064859,133.27,133.25,0.05435209]
[1744835371863,0.05586386,133.27,133.25,0.05435209]
[1744835372066,0.05586386,133.27,133.25,7.55855209]
[1744835372769,0.05586386,133.27,133.26,7.5039]
[1744835373768,0.05586386,133.27,133.25,7.55855209]
[1744835374069,0.05586386,133.27,133.25,0.05435209]
[1744835375169,7.55946386,133.27,133.25,0.05435209]
[1744835375572,0.05586386,133.27,133.25,0.05435209]
[1744835375769,0.05586386,133.27,133.25,7.55855209]
[1744835376370,7.55926386,133.27,133.25,0.05435209]
[1744835376771,0.05586386,133.27,133.25,0.05435209]
[1744835377871,7.5039,133.26,133.25,0.05435209]
[1744835381273,19.91945978,133.27,133.21,2.0174]
[1744835381476,7.5061,133.23,133.21,2.0174]
[1744835382476,7.5062,133.22,133.21,0.05735477]
[1744835382783,19.91475548,133.23,133.17,2.01]
[1744835382983,7.5077,133.2,133.17,2.01]
[1744835383183,33.06,133.2,133.17,2.01]
[1744835383581,7.5083,133.19,133.17,2.01]
[1744835383783,7.5083,133.19,133.17,2.06591833]
[1744835384186,40.62276489,133.2,133.17,2.06591833]
[1744835384384,33.06,133.25,133.17,21.92951425]
[1744835384580,33.06,133.25,133.19,19.86359592]
[1744835384783,33.06,133.25,133.21,19.86359592]
[1744835385081,540.38,133.29,133.21,19.86359592]
[1744835385281,33.08,133.28,133.25,7.504]
[1744835385483,33.12965879,133.28,133.25,7.5526481]
[1744835385682,33.12965879,133.28,133.25,0.0486481]
[1744835386876,33.12965879,133.28,133.25,7.5527481]
[1744835387186,33.12965879,133.28,133.25,0.0486481]
[1744835389288,7.5037,133.27,133.25,0.0486481]
[1744835390379,33.12965879,133.28,133.25,0.0486481]
[1744835390585,7.5039,133.26,133.25,0.0486481]
[1744835391387,33.12965879,133.28,133.25,0.0486481]
[1744835391690,0.04965879,133.28,133.25,0.0486481]
[1744835391990,0.04965879,133.28,133.25,1.9520481]
[1744835392190,40.5814,133.31,133.27,7.503]
[1744835392989,7.5018,133.3,133.27,7.503]
[1744835393190,7.55625208,133.3,133.27,7.55780782]
[1744835393592,0.05445208,133.3,133.27,7.55780782]
[1744835395590,7.55615208,133.3,133.27,7.55780782]
[1744835396195,0.05445208,133.3,133.27,7.55780782]
[1744835398899,0.05445208,133.3,133.27,0.05480782]
[1744835399197,33.06,133.34,133.29,31.77825221]
[1744835399402,540.46,133.36,133.3,2.0258]
[1744835399900,547.9587,133.36,133.33,7.4998]
[1744835400096,540.51199341,133.36,133.33,0.05566044]
[1744835400496,548.01069341,133.36,133.33,7.55556044]
[1744835400893,7.4967,133.39,133.33,0.05566044]
[1744835401098,33.06,133.4,133.33,31.83391265]
[1744835401502,7.4973,133.38,133.34,7.4991]
[1744835401700,33.06,133.4,133.33,31.83391265]
[1744835401900,573.42,133.43,133.35,31.77825221]
[1744835402104,33.06,133.46,133.38,0.04929457]
[1744835402298,33.06,133.46,133.39,31.77825221]
[1744835402494,33.06,133.46,133.41,0.04985385]
[1744835402697,7.4938,133.44,133.41,0.04985385]
[1744835402997,33.06,133.46,133.41,0.04985385]
[1744835403904,7.4941,133.44,133.41,0.04985385]
[1744835404100,33.06,133.46,133.41,0.04985385]
[1744835405599,64.83825221,133.46,133.41,0.04985385]
[1744835405804,31.77825221,133.44,133.41,0.04985385]
[1744835406103,31.77825221,133.44,133.41,5.385e-05]
[1744835406303,7.4949,133.42,133.41,5.385e-05]
[1744835406499,40.5349,133.42,133.41,5.385e-05]
[1744835408405,33.04,133.42,133.41,5.385e-05]
[1744835408601,33.04,133.48,133.41,7.49505385]
[1744835408801,33.04,133.48,133.42,4.0504]
[1744835409604,7.493,133.46,133.42,11.5453]
[1744835409807,33.04,133.48,133.42,4.0504]
[1744835410506,7.4931,133.46,133.42,11.5453]
[1744835411409,33.04,133.48,133.42,4.0504]
[1744835411705,32.96,133.51,133.43,31.77825221]
[1744835411898,32.96,133.51,133.46,0.05108767]
[1744835412095,7.4913,133.49,133.46,0.05108767]
[1744835412505,32.96,133.51,133.46,0.05108767]
[1744835413103,7.4914,133.49,133.46,0.05108767]
[1744835413303,32.96,133.51,133.46,0.05108767]
[1744835413699,31.77825221,133.48,133.42,1.984]
[1744835413904,32.96,133.47,133.42,1.984]
[1744835414208,7.4942,133.44,133.42,1.984]
[1744835414405,32.96,133.47,133.42,1.984]
[1744835414808,7.4941,133.44,133.43,0.05732618]
[1744835415413,7.4934,133.45,133.43,0.05732618]
[1744835415712,0.04914432,133.46,133.43,0.05732618]
[1744835416211,7.4938,133.45,133.43,0.05732618]
[1744835416404,0.04914432,133.46,133.43,0.05732618]
[1744835416605,7.4938,133.44,133.43,0.05732618]
[1744835421513,0.04914432,133.46,133.43,0.05732618]
[1744835421915,0.04914432,133.46,133.44,7.4935]
[1744835422113,539.92,133.49,133.43,31.83557839]
[1744835422114,547.4113,133.49,133.43,31.83557839]
[1744835422314,32.94,133.51,133.46,7.4924]
[1744835423110,32.94,133.51,133.47,0.05240595]
[1744835423716,31.77825221,133.56,133.47,0.05240595]
[1744835423911,32.94,133.53,133.5,0.0536476]
[1744835424112,7.4893,133.52,133.5,0.0536476]
[1744835424310,32.94,133.53,133.5,0.0536476]
[1744835425314,539.7,133.58,133.5,0.0536476]
[1744835425516,32.94,133.57,133.5,0.0536476]
[1744835426116,40.427,133.57,133.52,7.4893]
[1744835426319,40.427,133.57,133.53,0.0478165]
[1744835426515,32.94,133.57,133.53,0.0478165]
[1744835426713,7.4871,133.56,133.53,7.5364165]
[1744835426917,32.94,133.57,133.53,0.0478165]
[1744835427117,32.94,133.6,133.53,0.0478165]
[1744835427317,32.94,133.6,133.55,0.05104546]
[1744835427523,32.94,133.64,133.56,31.77825221]
[1744835427713,7.4843,133.61,133.59,0.05489972]
[1744835428316,7.4839,133.62,133.59,0.05489972]
[1744835428522,32.94,133.64,133.59,0.05489972]
[1744835428916,7.4837,133.63,133.59,7.53979972]
[1744835429519,32.94,133.67,133.59,2.10839972]
[1744835429720,32.94,133.7,133.62,0.05458368]
[1744835429922,31.77825221,133.67,133.65,0.05735243]
[1744835430123,40.4015,133.66,133.65,0.05735243]
[1744835430318,32.92,133.69,133.65,0.05735243]
[1744835430723,31.77825221,133.68,133.59,2.0535]
[1744835431114,31.77825221,133.66,133.57,2.0448]
[1744835431318,31.77825221,133.62,133.54,2.0669]
[1744835431518,32.92,133.61,133.54,2.0669]
[1744835431723,7.4866,133.57,133.56,0.04962645]
[1744835431925,0.05043644,133.59,133.56,0.04962645]
[1744835432319,7.4865,133.57,133.56,0.04962645]
[1744835432520,32.92,133.57,133.51,1.9538]
[1744835432718,7.4893,133.52,133.51,1.9538]
[1744835432920,32.92,133.53,133.45,33.72225221]
[1744835433122,32.92,133.52,133.46,4.0207]
[1744835433324,32.92,133.52,133.44,1.30283404]
[1744835433524,0.05441598,133.49,133.47,0.04815136]
[1744835434727,7.4916,133.48,133.47,0.04815136]
[1744835435223,0.05441598,133.49,133.47,0.04815136]
[1744835436532,7.54561598,133.49,133.47,0.04815136]
[1744835437026,40.4095,133.52,133.48,7.4912]
[1744835437226,32.92,133.52,133.48,2.1032]
[1744835437627,7.4902,133.51,133.48,2.1032]
[1744835438028,7.54611224,133.51,133.48,2.1032]
[1744835438930,0.05591224,133.51,133.48,2.1032]
[1744835439130,32.92,133.52,133.49,1.9102]
[1744835439531,32.92,133.52,133.49,9.4007]
[1744835440031,572.16,133.55,133.49,1.9102]
[1744835440229,572.16,133.55,133.51,0.05513544]
[1744835441331,32.84,133.58,133.53,31.77825221]
[1744835441535,7.4857,133.59,133.55,7.4875]
[1744835441728,7.4857,133.59,133.56,0.05200447]
[1744835442231,7.486,133.58,133.56,0.05200447]
[1744835442626,32.84,133.6,133.56,0.05200447]
[1744835442826,31.77825221,133.58,133.45,1.30298038]
[1744835443027,32.84,133.6,133.46,33.78305221]
[1744835443330,31.77825221,133.57,133.46,66.62305221]
[1744835443529,32.84,133.56,133.46,66.62305221]
[1744835444029,0.04803139,133.52,133.5,0.05689729]
[1744835444723,32.88803139,133.52,133.5,0.05689729]
[1744835444928,32.88803139,133.52,133.46,2.0048]
[1744835445829,0.04803139,133.52,133.46,2.0048]
[1744835446028,7.53753139,133.52,133.48,7.54311182]
[1744835446231,0.04803139,133.52,133.48,0.05161182]
[1744835446533,7.53763139,133.52,133.48,7.54291182]
[1744835446928,0.04803139,133.52,133.48,0.05161182]
[1744835447230,0.04803139,133.52,133.49,7.4909]
[1744835447727,7.4906,133.5,133.48,0.05161182]
[1744835449433,7.491,133.49,133.48,0.05161182]
[1744835454236,7.493,133.46,133.44,2.0934]
[1744835454537,32.86,133.47,133.43,2.0334]
[1744835454734,32.86,133.47,133.38,36.9241]
[1744835454931,32.86,133.47,133.39,2.0217]
[1744835455132,32.86,133.47,133.39,9.5181]
[1744835455329,0.05509228,133.44,133.42,0.04823191]
[1744835455634,40.3547,133.43,133.42,0.04823191]
[1744835456233,7.4961,133.4,133.39,2.0217]
[1744835456837,32.86,133.43,133.39,2.0217]
[1744835457037,51.47428728,133.42,133.29,117.29507452]
[1744835457232,51.47428728,133.4,133.31,2.0042]
[1744835457432,0.2137,133.42,133.3,33.0250036]
[1744835457433,51.47428728,133.36,133.3,33.0250036]
[1744835457631,51.47428728,133.34,133.3,33.0250036]
[1744835457836,7.5009,133.32,133.3,33.0250036]
[1744835458032,32.86,133.32,133.3,33.0250036]
[1744835458231,32.86,133.35,133.3,33.0250036]
[1744835458436,0.05185806,133.34,133.31,0.05348895]
[1744835460036,7.55145806,133.34,133.31,0.05348895]
[1744835460237,0.05185806,133.34,133.31,0.05348895]
[1744835460444,7.5006,133.32,133.31,0.05348895]
[1744835461037,0.05185806,133.34,133.31,0.05348895]
[1744835461429,0.05185806,133.34,133.31,51.52777623]
[1744835461634,32.86,133.38,133.35,7.4988]
[1744835461836,32.86,133.42,133.33,84.33428728]
[1744835462037,32.86,133.42,133.34,53.57128728]
[1744835462240,32.86,133.42,133.34,2.097]
[1744835462738,0.05751747,133.39,133.37,0.05307258]
[1744835462936,32.88,133.38,133.37,0.05307258]
[1744835463335,0.05751747,133.39,133.37,0.05307258]
[1744835464540,7.4972,133.38,133.37,0.05307258]
[1744835464940,58.97428728,133.38,133.2,365.0]
[1744835465143,51.47428728,133.31,133.25,2.0133]
[1744835465345,51.47428728,133.29,133.18,52.77985847]
[1744835465537,32.88,133.28,133.2,2.0133]
[1744835466038,0.05240697,133.25,133.23,0.05076006]
[1744835467042,7.55740697,133.25,133.23,0.05076006]
[1744835467242,0.05240697,133.25,133.23,0.05076006]
[1744835468141,7.5051,133.24,133.23,0.05076006]
[1744835468342,0.05240697,133.25,133.23,0.05076006]
[1744835468542,7.55720697,133.25,133.23,0.05076006]
[1744835468742,0.05240697,133.25,133.23,0.05076006]
[1744835469141,32.88,133.24,133.23,0.05076006]
[1744835469342,40.3851,133.24,133.23,0.05076006]
[1744835470042,7.5067,133.21,133.2,2.0133]
[1744835470544,7.5067,133.21,133.15,7.5099]
[1744835470844,32.88,133.24,133.13,32.82]
[1744835471046,0.05678469,133.2,133.17,0.05618059]
[1744835471941,0.05678469,133.2,133.17,7.56508059]
[1744835472147,32.88,133.24,133.17,0.05618059]
[1744835472345,32.88,133.24,133.18,1.911]
[1744835472944,7.5078,133.2,133.18,1.911]
[1744835473145,0.05343109,133.2,133.18,0.04867332]
[1744835474646,32.84,133.29,133.18,91.8629606]
[1744835474842,32.84,133.29,133.21,51.47428728]
[1744835475145,32.84,133.29,133.22,7.5058]
[1744835475642,0.05103,133.27,133.24,0.04949668]
[1744835476143,32.84,133.29,133.24,0.04949668]
[1744835477247,0.05411028,133.28,133.24,0.04949668]
[1744835478150,7.5045,133.25,133.24,0.04949668]
[1744835478351,32.84,133.25,133.2,1.9476]
[1744835479140,7.506,133.23,133.2,1.9476]
[1744835479448,0.05568644,133.23,133.2,1.99848018]
[1744835479843,0.05568644,133.23,133.21,7.5067]
[1744835480148,32.84,133.25,133.2,1.99848018]
[1744835480351,32.84,133.31,133.23,51.47428728]
[1744835480653,32.84,133.31,133.25,51.47428728]
[1744835480849,7.502,133.3,133.26,7.5036]
[1744835481049,32.84,133.31,133.27,1.9161]
[1744835481250,0.05166687,133.3,133.2,365.0]
[1744835481452,51.47428728,133.3,133.21,1.9161]
[1744835482254,51.47428728,133.3,133.21,9.4225]
[1744835482455,51.47428728,133.3,133.24,0.04780029]
[1744835482456,0.05727423,133.27,133.24,0.04780029]
[1744835482650,32.89727423,133.27,133.24,0.04780029]
[1744835482852,7.5045,133.25,133.24,0.04780029]
[1744835483453,51.47428728,133.26,133.15,51.47428728]
[1744835483657,51.47428728,133.26,133.16,1.9962]
[1744835483858,51.47428728,133.24,133.16,1.9962]
[1744835484061,7.5083,133.19,133.16,1.9962]
[1744835484259,32.84,133.23,133.16,1.9962]
[1744835484660,0.05276901,133.21,133.18,0.05477759]
[1744835485159,7.5079,133.19,133.18,0.05477759]
[1744835485359,40.3479,133.19,133.18,0.05477759]
[1744835486658,40.3479,133.19,133.1,32.84]
[1744835486659,7.5106,133.15,133.1,32.84]
[1744835486851,32.84,133.19,133.12,9.5484]
[1744835487050,32.84,133.19,133.12,2.0371]
[1744835487656,7.5103,133.15,133.14,0.05626689]
[1744835492860,7.5103,133.15,133.07,32.86]
[1744835492861,32.86,133.15,133.05,51.47428728]
[1744835493164,32.86,133.15,133.04,32.86]
[1744835493165,32.86,133.15,133.09,1.9114]
[1744835493361,7.5121,133.12,133.09,1.9114]
[1744835493562,32.86,133.15,133.09,1.9114]
[1744835493762,32.86,133.15,133.09,9.4246]
[1744835493960,0.04879042,133.13,133.11,0.05278527]
[1744835494161,7.5119,133.12,133.11,0.05278527]
[1744835495261,51.47428728,133.22,133.11,51.52707255]
[1744835495462,32.86,133.21,133.13,51.47428728]
[1744835495771,7.5088,133.18,133.14,7.5104]
[1744835496368,0.05766786,133.17,133.15,0.05677642]
[1744835498070,7.56666786,133.17,133.15,0.05677642]
[1744835498272,0.05766786,133.17,133.15,0.05677642]
[1744835498670,7.5096,133.16,133.15,0.05677642]
[1744835499473,40.42686786,133.17,133.15,0.05677642]
[1744835499773,32.91766786,133.17,133.15,0.05677642]
[1744835500173,7.5096,133.16,133.15,0.05677642]
[1744835506076,51.72880754,133.16,133.09,1.9114]
[1744835506273,51.72880754,133.14,133.09,1.9114]
[1744835506576,32.8,133.13,133.09,1.9114]
[1744835507275,0.0506958,133.12,133.1,0.05174253]
[1744835508176,7.5125,133.11,133.1,0.05174253]
[1744835509877,0.0506958,133.12,133.05,11.4171]
[1744835509878,7.5141,133.08,133.05,11.4171]
[1744835510078,51.72880754,133.12,133.05,11.4171]
[1744835510278,32.82,133.11,133.05,11.4171]
[1744835510877,7.514,133.09,133.05,11.4171]
[1744835511078,7.5677996,133.09,133.07,0.04932179]
[1744835511481,0.0537996,133.09,133.07,0.04932179]
[1744835512173,7.5676996,133.09,133.07,0.04932179]
[1744835512581,0.0537996,133.09,133.07,0.04932179]
[1744835512779,7.5141,133.08,133.07,0.04932179]
[1744835512980,0.0537996,133.09,133.07,0.04932179]
[1744835513176,0.0537996,133.09,133.07,7.56372179]
[1744835515884,7.5673996,133.09,133.07,0.04932179]
[1744835516184,0.0537996,133.09,133.07,0.04932179]
[1744835517786,7.5675996,133.09,133.07,0.04932179]
[1744835518887,0.0537996,133.09,133.07,0.04932179]
[1744835520085,0.0537996,133.09,133.07,7.56342179]
[1744835520785,0.0537996,133.09,133.08,7.5141]
[1744835522289,574.6695751,133.17,133.12,7.5116]
[1744835522488,32.82,133.16,133.1,31.8550751]
[1744835522791,15.0102,133.24,133.11,4.0109]
[1744835522792,543.1641,133.24,133.11,4.0109]
[1744835523093,32.82,133.23,133.16,31.8550751]
[1744835523287,7.5072,133.21,133.17,4.0109]
[1744835523488,0.05761172,133.21,133.18,0.05216103]
[1744835523792,7.56451172,133.21,133.18,0.05216103]
[1744835524392,0.05761172,133.21,133.18,0.05216103]
[1744835526193,7.5079,133.19,133.18,0.05216103]
[1744835527094,40.3279,133.19,133.18,0.05216103]
[1744835528194,32.82,133.19,133.12,2.0946]
[1744835528396,64.6750751,133.19,133.13,1.9409]
[1744835528691,31.8550751,133.15,133.09,9.4371]
[1744835528893,32.82,133.14,133.09,11.378]
[1744835529392,0.0554308,133.13,133.1,0.05623363]
[1744835530494,7.5122,133.12,133.1,0.05623363]
[1744835531495,7.5124,133.11,133.1,0.05623363]
[1744835531999,31.8550751,133.11,133.05,2.0863]
[1744835532199,32.76,133.1,133.05,2.0863]
[1744835532595,7.5144,133.08,133.05,2.0863]
[1744835532795,32.76,133.1,133.05,2.0863]
[1744835532997,0.05123325,133.08,133.05,2.13686177]
[1744835533990,32.76,133.15,133.07,31.8550751]
[1744835534195,32.76,133.15,133.08,2.0498]
[1744835534396,7.5119,133.12,133.08,2.0498]
[1744835534696,64.6150751,133.15,133.05,2.0863]
[1744835534901,7.5142,133.08,133.05,2.0863]
[1744835535100,7.5614652,133.08,133.05,2.1373967]
[1744835535801,0.0472652,133.08,133.05,9.6530967]
[1744835536503,0.0472652,133.08,133.05,2.1373967]
[1744835537603,7.5146,133.07,133.05,2.1373967]
[1744835538602,0.0472652,133.08,133.05,2.1373967]
[1744835538906,7.5152,133.06,133.05,2.1373967]
[1744835539908,40.2752,133.06,133.05,0.0510967]
[1744835541205,7.5165,133.04,133.01,2.0924]
[1744835541403,32.76,133.06,133.01,2.0924]
[1744835542408,31.9101237,133.05,133.02,0.05511292]
[1744835543709,7.5169,133.03,133.02,0.05511292]
[1744835546812,32.78,133.07,133.04,7.5163]
[1744835547113,32.78,133.07,133.02,4.09741292]
[1744835547715,32.78,133.07,133.05,7.5158]
[1744835547916,32.82845263,133.07,133.05,0.04921369]
[1744835548216,32.82845263,133.07,133.05,7.56481369]
[1744835548415,0.04845263,133.07,133.05,7.56481369]
[1744835548614,0.04845263,133.07,133.05,0.04921369]
[1744835549418,7.5152,133.06,133.05,0.04921369]
[1744835550417,7.516,133.05,133.02,1.9589]
[1744835550919,7.516,133.05,133.02,9.4763]
[1744835551119,0.04845263,133.07,133.02,9.4763]
[1744835551120,0.04845263,133.07,133.02,1.9589]
[1744835551315,0.04845263,133.07,133.03,33.8460751]
[1744835551519,0.04845263,133.07,133.06,7.5152]
[1744835551716,32.78,133.12,133.03,33.89484213]
[1744835551916,32.78,133.12,133.03,33.8460751]
[1744835552116,32.78,133.12,133.04,1.9343]
[1744835552320,7.5124,133.11,133.04,1.9343]
[1744835552515,32.78,133.16,133.08,31.8550751]
[1744835552720,0.04756517,133.13,133.11,0.05132512]
[1744835552912,0.05597699,133.13,133.11,2.01043265]
[1744835553116,32.78,133.19,133.11,2.01043265]
[1744835553419,32.78,133.19,133.14,7.5103]
[1744835553420,7.5088,133.18,133.14,7.5103]
[1744835553719,7.5088,133.18,133.11,1.9552]
[1744835554107,0.0573371,133.16,133.13,0.0540395]
[1744835554920,0.0573371,133.16,133.14,7.5104]
[1744835555114,0.0573371,133.16,133.13,0.0540395]
[1744835555317,541.18,133.24,133.15,31.8550751]
[1744835555515,32.78,133.26,133.17,31.8550751]
[1744835555714,32.78,133.26,133.17,64.6150751]
[1744835555916,7.5054,133.24,133.17,64.6150751]
[1744835556211,32.78,133.26,133.17,64.6150751]
[1744835556417,0.04925693,133.23,133.2,7.56327758]
[1744835557319,0.04925693,133.23,133.21,7.5067]
[1744835558120,0.04925693,133.23,133.2,7.56367758]
[1744835558724,0.04925693,133.23,133.2,0.05647758]
[1744835559223,32.76,133.29,133.21,64.6150751]
[1744835559423,32.76,133.29,133.23,31.8550751]
[1744835559619,32.76,133.29,133.21,64.6150751]
[1744835560313,1.9975,133.32,133.21,64.6150751]
[1744835560314,3.269e-05,133.26,133.25,31.8550751]
[1744835560519,32.7,133.32,133.25,31.8550751]
[1744835561021,7.5013,133.31,133.27,7.503]
[1744835561217,32.7,133.32,133.25,31.8550751]
[1744835561421,2.3256,133.36,133.25,31.8550751]
[1744835561422,9.922e-05,133.3,133.29,7.5022]
[1744835561620,32.7,133.36,133.25,64.5550751]
[1744835561924,32.7,133.36,133.3,7.5013]
[1744835562124,32.7,133.36,133.27,31.8550751]
[1744835562621,31.90341399,133.33,133.3,0.05619136]
[1744835562822,32.68,133.32,133.23,399.7512]
[1744835563022,31.8550751,133.31,133.23,2.0712]
[1744835563223,31.8550751,133.27,133.15,64.5350751]
[1744835563522,32.68,133.26,133.16,4.0651]
[1744835563727,0.05415898,133.22,133.2,0.05500036]
[1744835564127,0.05415898,133.22,133.2,7.56190036]
[1744835564926,0.05415898,133.22,133.2,0.05500036]
[1744835565520,0.05415898,133.22,133.2,7.56190036]
[1744835565922,0.05415898,133.22,133.2,0.05500036]
[1744835566726,7.56055898,133.22,133.2,0.05500036]
[1744835568030,0.05415898,133.22,133.2,0.05500036]
[1744835568823,32.73415898,133.22,133.2,0.05500036]
[1744835569023,7.5067,133.21,133.2,0.05500036]
[1744835569227,32.73415898,133.22,133.17,2.1007]
[1744835569424,32.73415898,133.22,133.13,2.1163]
[1744835569624,31.8550751,133.21,133.13,9.4487]
[1744835569830,32.68,133.22,133.13,1.9379]
[1744835570031,32.68,133.22,133.16,7.5092]
[1744835570227,0.05306834,133.2,133.18,0.05689216]
[1744835571730,0.05306834,133.2,133.19,7.5079]
[1744835571930,0.05306834,133.2,133.18,0.05689216]
[1744835573235,31.90814344,133.2,133.13,1.9379]
[1744835573430,0.05306834,133.2,133.13,1.9379]
[1744835574231,7.5082,133.19,133.15,7.5097]
[1744835574434,7.5082,133.19,133.15,7.56480203]
[1744835574634,7.5082,133.19,133.15,0.05510203]
[1744835576034,7.5082,133.19,133.15,7.56520203]
[1744835576235,7.5085,133.18,133.15,0.05510203]
[1744835576435,32.68,133.18,133.15,0.05510203]
[1744835576932,7.5096,133.16,133.15,0.05510203]
[1744835580238,7.511,133.14,133.08,64.5350751]
[1744835580441,64.5350751,133.18,133.09,1.9975]
[1744835580837,7.5127,133.11,133.09,1.9975]
[1744835581141,32.68,133.19,133.1,31.8550751]
[1744835581340,0.05200319,133.16,133.13,31.90413998]
[1744835581541,0.0498731,133.16,133.14,1.9393]
[1744835581741,32.68,133.22,133.14,1.9393]
[1744835582227,7.5081,133.19,133.15,7.5098]
[1744835582435,32.68,133.22,133.14,1.9393]
[1744835582630,32.68,133.22,133.17,0.05322338]
[1744835582830,0.05175272,133.19,133.17,31.90829848]
[1744835583340,0.05175272,133.19,133.18,7.5084]
[1744835585041,0.05175272,133.19,133.17,31.90829848]
[1744835585042,0.05175272,133.19,133.17,7.56202338]
[1744835585242,0.05175272,133.19,133.17,0.05322338]
[1744835588739,7.5084,133.18,133.17,0.05322338]
[1744835588945,40.1884,133.18,133.17,0.05322338]
[1744835589342,32.68,133.18,133.11,2.0995]
[1744835589540,32.68,133.18,133.1,1.9442]
[1744835589737,31.8550751,133.17,133.1,1.9442]
[1744835590444,7.5111,133.14,133.12,0.04769723]
[1744835590640,40.1311,133.14,133.12,0.04769723]
[1744835590938,32.62,133.14,133.12,0.04769723]
[1744835591145,7.5113,133.13,133.12,0.04769723]
[1744835591945,32.62,133.14,133.12,0.04769723]
[1744835592544,7.5113,133.13,133.12,0.04769723]
[1744835596743,32.62,133.14,133.03,32.64]
[1744835596948,31.8550751,133.13,133.04,1.9856]
[1744835597249,7.5142,133.08,133.04,9.5018]
[1744835597742,7.5142,133.08,133.05,0.04793396]
[1744835597950,0.04800132,133.07,133.05,0.04793396]
[1744835598650,7.56300132,133.07,133.05,0.04793396]
[1744835599654,32.64,133.06,132.97,396.8550751]
[1744835599850,32.64,133.06,132.98,1.9315]
[1744835600046,7.516,133.05,132.98,1.9315]
[1744835600747,0.04891935,133.03,133.0,0.05037695]
[1744835601148,32.64,133.06,133.0,0.05037695]
[1744835601149,32.64,133.06,133.0,31.90545205]
[1744835601552,32.64,133.06,133.0,0.05037695]
[1744835601753,7.516,133.05,133.01,7.5177]
[1744835602149,0.05126713,133.04,133.01,7.5177]
[1744835603355,0.05126713,133.04,133.02,7.5173]
[1744835604155,0.05126713,133.04,133.01,7.5178]
[1744835605051,7.56766713,133.04,133.01,7.5178]
[1744835605250,0.05126713,133.04,133.0,7.56887695]
[1744835605451,0.05126713,133.04,133.0,0.05037695]
[1744835605759,7.56786713,133.04,133.01,7.5179]
[1744835606357,7.517,133.03,133.0,0.05037695]
[1744835606757,0.05126713,133.04,133.0,0.05037695]
[1744835607354,7.56796713,133.04,133.0,7.56867695]
[1744835607557,32.66,133.11,133.01,64.5150751]
[1744835607858,32.66,133.16,133.08,31.8550751]
[1744835608058,32.66,133.16,133.09,2.1161]
[1744835608559,32.66,133.16,133.08,1.9221]
[1744835608758,0.04909631,133.14,133.03,64.5150751]
[1744835608956,7.5145,133.08,133.04,7.5159]
[1744835609760,0.04879467,133.07,133.05,0.05416225]
[1744835610859,7.5152,133.06,133.05,0.05416225]
[1744835613060,7.5176,133.02,133.0,31.8550751]
[1744835613257,7.5176,133.02,133.01,1.9736]
[1744835614059,7.5172,133.03,133.01,1.9736]
[1744835614255,0.04857713,133.03,133.01,1.9736]
[1744835614560,7.5175,133.02,133.01,1.9736]
[1744835616460,32.66,133.02,132.94,64.5150751]
[1744835616663,32.66,133.02,132.95,1.9723]
[1744835617567,0.05301902,133.0,132.97,0.05710342]
[1744835617972,7.57181902,133.0,132.97,0.05710342]
[1744835618169,0.05301902,133.0,132.97,0.05710342]
[1744835619476,7.5197,132.98,132.97,0.05710342]
[1744835622474,7.5209,132.96,132.95,1.9723]
[1744835624478,7.5214,132.95,132.94,0.05764669]
[1744835627277,31.8550751,132.96,132.86,9.4606]
[1744835627473,31.8550751,132.96,132.87,1.917]
[1744835627675,31.8550751,132.96,132.87,9.4426]
[1744835628068,31.8550751,132.96,132.87,1.917]
[1744835628273,0.05489104,132.93,132.9,0.04770958]
[1744835628572,32.67489104,132.93,132.9,0.04770958]
[1744835628773,0.05489104,132.93,132.9,7.57150958]
[1744835628979,0.05489104,132.93,132.9,31.90278468]
[1744835629784,573.3750751,133.05,132.96,7.5208]
[1744835629986,31.8550751,133.02,132.91,31.8550751]
[1744835630478,32.8978,133.04,132.93,31.8550751]
[1744835630779,0.05001728,133.0,132.95,31.8550751]